Cogmind - Beta 16.1 @@@ ROGUE MODE // 2026.03.06 @ 18:26:10 Player: star Result: Destroyed by MZ-CBU(R) with Subdweller Machine Gun Performance ------------- Evolutions (0) 0 Regions Visited (2) 400 Robots Destroyed (22) 110 Value Destroyed (554) 554 Prototype IDs (0) 0 Alien Tech Used (0) 0 Bonus (0) 0 TOTAL SCORE: 1064 Bonus ------- None Cogmind --------- Core Integrity 0/250 Matter 289/300 Energy 195/200 System Corruption 0% Temperature Cool (0) Movement Rolling (120) Ox1 Location -10/Subcaves Parts ------- > --- POWER (1) -------- Subdweller Power Source > --- PROPULSION (2) --- Subdweller Monowheel Subdweller Monowheel > --- UTILITY (2) ------ Large Storage Unit Machine Analyzer > --- WEAPON (2) ------- Battle Rifle Makeshift Hammer > --- INVENTORY (15) --- Aluminum Leg Aluminum Leg Aluminum Leg Aluminum Leg Flight Unit Heat Sink Huge Storage Unit Medium Battery (150) Large Matter Pod (150) Makeshift Light Armor Plating Particle Gun Particle Gun Assault Rifle Light Assault Rifle Peak State ------------ > --- POWER ------------ Subdweller Power Source > --- PROPULSION ------- Subdweller Monowheel Subdweller Monowheel > --- UTILITY ---------- Large Storage Unit Machine Analyzer > --- WEAPON ----------- Battle Rifle Makeshift Hammer > --- INVENTORY -------- Aluminum Leg Aluminum Leg Aluminum Leg Aluminum Leg Flight Unit Heat Sink Huge Storage Unit Medium Battery Large Matter Pod Makeshift Light Armor Plating Particle Gun Particle Gun Assault Rifle Light Assault Rifle [Rating: 17] Favorites ----------- Power Subdweller Power Source Engine Subdweller Power Source Propulsion Compact Wheel Wheel Compact Wheel Utility Large Storage Unit Storage Large Storage Unit Processor Machine Analyzer Protection Light Armor Plating Weapon Battle Rifle Energy Gun Small Laser Ballistic Gun Battle Rifle Impact Weapon Hammer Build | -11 -10 -10 ------- Run | Yrd Mat Sub Slots Evolved . | . . . Power . | . . . Propulsion . | . . . Utility . | . . . Weapon . | . . . Parts Attached 22 | 6 8 8 Power 3 | 1 1 1 Engine 3 | 1 1 1 Core . | . . . Reactor . | . . . Propulsion 4 | 2 . 2 Treads . | . . . Leg . | . . . Wheel 4 | 2 . 2 Hover . | . . . Flight . | . . . Utility 5 | 1 3 1 Device . | . . . Storage 3 | 1 2 . Processor 1 | . . 1 Hackware . | . . . Protection 1 | . 1 . Artifact . | . . . Weapon 10 | 2 4 4 Energy Gun 3 | 2 . 1 Energy Cannon . | . . . Ballistic Gun 5 | . 3 2 Ballistic Cannon . | . . . Launcher . | . . . Special Weapon . | . . . Impact Weapon 2 | . 1 1 Slashing Weapon . | . . . Piercing Weapon . | . . . Special Melee Weapon . | . . . Unidentified Prototypes . | . . . Parts Lost 7 | . 3 4 Power 2 | . 2 . Propulsion 2 | . . 2 Utility 1 | . . 1 Weapon 2 | . 1 1 Highest Loss Streak 3 | . 2 3 To Critical Strikes . | . . . Average Backups 12 | . 10 14 Power . | . . . Propulsion 3 | . 2 5 Utility 4 | . 4 4 Weapon 4 | . 3 5 Tool/Special . | . . . Unused Backups 13 | . 1 12 Power . | . . . Propulsion 5 | . . 5 Utility 6 | . 1 5 Weapon 2 | . . 2 Tool/Special . | . . . Average Slot Usage (%) 89 | . 89 88 Engine 8 | . 6 10 Wheel 25 | . 28 21 Storage 17 | . 19 14 Processor 4 | . . 10 Protection 4 | . 6 2 Energy Gun 9 | . 14 3 Ballistic Gun 14 | . 7 24 Impact Weapon 3 | . 5 . Peak Build Rating 17 | 6 8 17 Average Rating 9 | 4 6 13 On Entrance 4 | . 6 7 Avg Prop Armor Cover (%) 5 | . . 5 Naked Turns . | . . . Heaviest Build 31 | 11 31 31 Greatest Support 40 | 26 26 40 Greatest Overweight (x) 8 | . 1 8 Average Overweight (x) . | . . . Largest Inventory Capacity 15 | 8 15 15 Average Capacity 14 | 6 14 15 Most Carried 15 | 2 15 15 Average Carried 12 | . 10 14 Final Capacity 15 | 8 15 15 Final Carried 15 | 2 15 14 Class Distribution -------------------- 66% | Mutant 33% | Scavenger-Mutant Dominant Class ---------------- Mutant | -10/Materials Scavenger-Mutant | -10/Subcaves Resources | -11 -10 -10 ----------- Run | Yrd Mat Sub Matter Collected 712 | 210 290 212 Remotely . | . . . Salvage Created 786 | . 534 252 Parts 52 | . 31 21 Haulers Intercepted 2 | . 2 . Recyclers Shooed . | . . . Parts Field Recycled . | . . . Retrieved Matter . | . . . Parts Self-Destructed 3 | . . 3 Prevented . | . . . Parts Restored . | . . . Kills | -11 -10 -10 ------- Run | Yrd Mat Sub Combat Hostiles Destroyed 18 | . 11 7 Melee 3 | . 3 . Guns 14 | . 7 7 Classes Destroyed 6 | . 5 1 Hauler 2 | . 2 . Operator 1 | . 1 . Watcher 1 | . 1 . Swarmer 6 | . 3 3 Grunt 8 | . 8 . Subdweller 4 | . . 4 Best Kill Streak 5 | . 5 3 Combat Bots Only 4 | . 4 3 Max Kills in Single Turn 2 | . 2 1 Gunslinging 1 | . 1 . Exploded . | . . . Melee 1 | . 1 . Uniques/NPCs Destroyed . | . . . Combat | -11 -10 -10 -------- Run | Yrd Mat Sub Hostile Shots Fired 88 | . 54 34 Missed 16 | . 7 9 Hits 72 | . 47 25 Projectile 72 | . 47 25 Critical Strikes 4 | . 3 1 Damage Taken 983 | . 492 491 Core 264 | . 148 116 Absorbed by Shields . | . . . Core Remaining (%) 100 | 100 . . Volleys Fired 44 | . 9 35 Largest 2 | . 2 2 Hottest 85 | . 60 85 Shots Fired 86 | . 18 68 Gun 86 | . 18 68 Cannon . | . . . Launcher . | . . . Special . | . . . Kinetic 68 | . 9 59 Thermal 18 | . 9 9 Explosive . | . . . Electromagnetic . | . . . Robot Hit Streak 16 | . 16 13 Robot Miss Streak 2 | . 2 1 Penetration Max . | . . . Secondary Targets 2 | . 1 1 Max Gunslinging Chain 1 | . 1 1 Shots Hit Robots 62 | . 31 31 Core Hits 30 | . 19 11 Critical Kills 1 | . 1 . Critical Parts Destroyed 1 | . 1 . Critical Strikes 3 | . 2 1 Destroy 1 | . . 1 Smash 2 | . 2 . Melee Attacks 21 | . 21 . Impact 21 | . 21 . Slashing . | . . . Piercing . | . . . Sneak Attacks 1 | . 1 . Combat Hostiles . | . . . Follow-up Attacks . | . . . Damage Inflicted 1110 | . 570 540 Guns 706 | . 166 540 Cannons . | . . . Explosions . | . . . Melee 404 | . 404 . Ramming . | . . . Kinetic 459 | . 78 381 Thermal 247 | . 88 159 Explosive . | . . . Electromagnetic . | . . . Impact 404 | . 404 . Slashing . | . . . Piercing . | . . . Highest Corruption . | . . . Average Corruption . | . . . Corruption Purged . | . . . Corruption Blocked . | . . . Overload Shots . | . . . Overflow Damage 34 | . 34 . Projectiles . | . . . Explosions . | . . . Melee 34 | . 34 . Knockbacks 1 | . 1 . Impact . | . . . Kinetic . | . . . Secondary 1 | . 1 . Self-Inflicted Damage . | . . . Shots . | . . . Rammed . | . . . Targets Rammed . | . . . Kicked . | . . . Crushed . | . . . Highest Temperature 246 | . 22 246 Average Temperature 78 | . 13 169 Received Heat Transfer 457 | . 174 283 Siege Activations . | . . . Martial Activations . | . . . Shielding Activations . | . . . Robots Disrupted . | . . . Combat Hostiles . | . . . Robots Corrupted 2 | . 2 . Combat Hostiles 1 | . 1 . Parts Fried 3 | . 3 . Impact Corruptions 3 | . 3 . Robots Melted . | . . . Combat Hostiles . | . . . Parts Melted . | . . . Heat Transferred 400 | . 200 200 Parts Sabotaged . | . . . Parts Stolen . | . . . Parts Stripped . | . . . Power Chain Reactions . | . . . Alert | -11 -10 -10 ------- Run | Yrd Mat Sub Maximum Alert Level . | . . . Low Security (%) 100 | 100 100 . Level 1 . | . . . Level 2 . | . . . Level 3 . | . . . Level 4 . | . . . Level 5 . | . . . High Security . | . . . Max Security . | . . . Peak Influence 138 | . 138 . Initial . | . . . Average 42 | . 44 . Influence Increases 403 | . 333 70 Destroy 0b10 Robot/C 280 | . 220 60 Destroy 0b10 Robot/NC 20 | . 20 . Destroy Leader 56 | . 46 10 Destroy Structure 2 | . 2 . Partial Spotted 15 | . 15 . Lose Combat Pursuer 30 | . 30 . Influence Decreases 367 | . 321 46 Entered New Map 7 | . . 7 Time Decay 320 | . 291 29 Lost Part 40 | . 30 10 Squads Dispatched 1 | . 1 . Investigation . | . . . Extermination . | . . . Reinforcement 1 | . 1 . Assault . | . . . Garrison . | . . . Intercept . | . . . Searches Triggered . | . . . Construction Impeded . | . . . Haulers Reinforced . | . . . Active Scanning Responses . | . . . Cargo Convoy Interrupts . | . . . Stealth | -11 -10 -10 --------- Run | Yrd Mat Sub Distress Signals 1 | . 1 . Communications Jammed . | . . . Distress Signals . | . . . Times Spotted 30 | . 21 9 Peak Tracking Total 6 | . 6 3 Tactical Retreats 2 | . 2 . Traps | -11 -10 -10 ------- Run | Yrd Mat Sub Traps Triggered 1 | . 1 . Indirectly . | . . . Trap Hack Attempts . | . . . Triggered . | . . . Disarmed . | . . . Reprogrammed . | . . . Reused . | . . . Traps Extracted . | . . . Installed . | . . . Triggered . | . . . Machines | -11 -10 -10 ---------- Run | Yrd Mat Sub Machines Disabled . | . . . Max in Single Turn . | . . . Machines Repaired . | . . . Machines Dismantled . | . . . Machines Sabotaged . | . . . Overloaded Fab Kills . | . . . Hacking | -11 -10 -10 --------- Run | Yrd Mat Sub Machines Accessed . | . . . Terminals . | . . . Fabricators . | . . . Repair Stations . | . . . Recycling Units . | . . . Scanalyzers . | . . . Garrison Access . | . . . Total Hacks . | . . . Successful . | . . . Failed . | . . . Catastrophic . | . . . Database Lockouts . | . . . Manual . | . . . Terminals . | . . . Fabricators . | . . . Repair Stations . | . . . Recycling Units . | . . . Scanalyzers . | . . . Garrison Access . | . . . Terminal Hacks . | . . . Fabricator Hacks . | . . . Repair Station Hacks . | . . . Recycling Unit Hacks . | . . . Scanalyzer . | . . . Garrison Access Hacks . | . . . Unauthorized Hacks . | . . . Terminals . | . . . Fabricators . | . . . Repair Stations . | . . . Recycling Units . | . . . Scanalyzers . | . . . Garrison Access . | . . . Data Cores Recovered 1 | . 1 . Used . | . . . Hacking Detections . | . . . Full Trace Events . | . . . Feedback Events . | . . . Feedback Blocked . | . . . Robot Schematics Acquired . | . . . Robots Built . | . . . Authchips . | . . . Time . | . . . Total Robot Build Rating . | . . . Part Schematics Acquired . | . . . Parts Built . | . . . Authchips . | . . . Time . | . . . Total Part Build Rating . | . . . Part Studies Acquired . | . . . Parts Repaired . | . . . Time . | . . . Parts Recycled . | . . . Recycled Matter . | . . . Retrieved Matter . | . . . Retrieved Components . | . . . Parts Scanalyzed . | . . . Part Schematics Acquired . | . . . Parts Damaged . | . . . Bothacking | -11 -10 -10 ------------ Run | Yrd Mat Sub Used RIF Installer . | . . . Robots Hacked . | . . . Non-combat . | . . . Combat . | . . . Robot Hacks Applied . | . . . Relay Couplers Released . | . . . Fabnet Peak Effective % . | . . . Robots Rewired . | . . . Allies Hacked . | . . . Hacks Repelled . | . . . Allies | -11 -10 -10 -------- Run | Yrd Mat Sub Total Allies . | . . . Largest Group . | . . . Highest-Rated Group . | . . . Highest-Rated Ally . | . . . Total Orders . | . . . Ally Attacks . | . . . Total Damage . | . . . Kills . | . . . Allies Corrupted . | . . . Allies Melted . | . . . Intel | -11 -10 -10 ------- Run | Yrd Mat Sub Active Infowar (turns) 482 | . . 482 Machine Analysis 482 | . . 482 Robot Analysis Total . | . . . Derelict Logs Recovered . | . . . Drone Launches . | . . . Drone Recoveries . | . . . Exploration | -11 -10 -10 ------------- Run | Yrd Mat Sub Turns Passed 1490 | 42 819 629 Spaces Moved 912 | 35 482 395 Core 6 | 1 . 5 Treads . | . . . Legs . | . . . Wheels 906 | 34 482 390 Hover . | . . . Flight . | . . . Fastest Speed 50 | 50 90 90 Average Speed 105 | 89 95 120 Slowest Speed 450 | 100 105 450 Overloaded Moves . | . . . Propulsion Burnouts . | . . . Robots Hopped . | . . . Potential Cave-ins 1 | . . 1 Cave-ins Triggered . | . . . Exploration Rate (%) 39 | 4 85 28 Regions Visited 2 Branch Regions 1 Pre-discovered Areas . | . . . Known Exits Taken . | . . . Unknown Exits Taken 2 | 1 1 . Scrap Searched 4 | . . 4 Spaces Dug 10 | . 2 8 Terrain Destroyed 10 | . 2 8 Melee 2 | . 2 . Projectile 8 | . . 8 AOE . | . . . Terrain Rammed . | . . . Walls Destroyed . | . . . Machines Disabled . | . . . Actions | -11 -10 -10 --------- Run | Yrd Mat Sub Total 1308 | 42 785 481 Wait 287 | . 248 39 Move 910 | 34 481 395 Hop . | . . . Pick Up 18 | 2 14 2 Fast Attach 11 | 6 1 4 Attach 3 | . 2 1 Detach . | . . . Swap 10 | . 7 3 Drop 4 | . 2 2 Fire 44 | . 9 35 Melee 21 | . 21 . Ram . | . . . Kick . | . . . Crush . | . . . Escape Stasis . | . . . Rewire . | . . . Trap . | . . . Miscellaneous . | . . . Route ------- -11/Scrapyard -10/Materials (discovered 4 exits: [*Mat x2] / [*Min] / [*Sub]) -10/Subcaves (discovered 1 exit: [*Mat]) History --------- Turn | Location | Event 10 | -11/Scrapyard | Discovered new exit (range 15) 43 | -11/Scrapyard | Entered Materials 214 | -10/Materials | Discovered new exit (range 15) 308 | -10/Materials | Build established: Mutant 415 | -10/Materials | Core integrity fell below 50% 474 | -10/Materials | Discovered new exit (range 7) 499 | -10/Materials | Discovered new exit (range 16) 847 | -10/Materials | Discovered new exit (range 4) 862 | -10/Materials | Entered Subcaves 863 | -10/Subcaves | Approached by a straggling Scientist 864 | -10/Subcaves | Shifting Twisted Machinery released Sub. Laser 866 | -10/Subcaves | Shifting Twisted Machinery released Battle Rifle 958 | -10/Subcaves | Core integrity fell below 20% 992 | -10/Subcaves | Lost 3 parts (2n1u) 1203 | -10/Subcaves | Disturbed a concealed Subdweller 1298 | -10/Subcaves | Build established: Scavenger-Mutant 1374 | -10/Subcaves | A swath of the cavern ceiling suddenly collapsed 1467 | -10/Subcaves | Discovered new exit (range 11) 1491 | -10/Subcaves | Destroyed by MZ-CBU(R) with Subdweller Machine Gun Last Messages --------------- 01203_ WE-0K7(R) angrily emerges from the Twisted Machinery. 01203_ Critical hit (Meltdown: +250). 01208_ WE-0K7(R) destroyed. 01211_ Searching scrap... 01211_ Found Sub. Beam Cannon. 01211_ Found Battle Cannon. 01211_ Found 34 Matter. 01212_ Acquired 15 matter. 01251_ Acquired 10 matter. 01271_ Sub. Monowheel shoots sparks and powers down. A swath of the cavern ceiling suddenly collapses. 01439_ S-10 Pest destroyed. 01442_ Switching to secondary target: S-10 Pest. 01443_ Lgt. Assault Rifle fries itself beyond repair. 01444_ S-10 Pest destroyed. 01447_ Acquired 15 matter. 01453_ Flight Unit fries itself beyond repair. 01467_ EXIT=FOUND 01486_ Sub. Machine Gun shoots sparks and powers down. 01489_ Broken Sub. Machine Gun destroyed. Map ----- +----------------------------------------------------+ | | | | | | | | | ?????????????????????????????????????????????????? | | ?????????????????????????????????????????????????? | | ?????????????????????????????????????????????????? | | ?????????????????????????????????????????????????? | | ?????????????????????????????????????????????????? | | ?????????????????????????????????????????????????? | | ?????????????????????????????????????????????????? | | ?????????????????????????????????????????????????? | | ?????????????????????????????????????????????????? | | ?????????????????????????????????????????????????? | | ?????????????????????????????????????????????????? | | ?????????????????????????????????????????????????? | | ?????????????????????????????????????????????????? | | ?????????????????????????????????????????????????? | | ??????????#???####????######?????????????????????? | | ??????? ### ### ##?## ##????????????????????? | | ?????? ## ###??????????????????? | | ?????? ## ## #?????????????? | | ?????? #??????????????? | | ???????????# R #??????????????? | | ???????????# R ## # #?????????????? | | #??????????# @#####? #??????????? | | ##???????### #??? < ????????? | | ????? ##????? ?????????? | | #???? ### #????????##?????????? | | #???? ? ###???# ##???????????????????? | | #???? ????????# ######???????????????????? | | ???## ????##### ##### ##??????????????????? | | ???# ???## ### %## ##?????????????????? | | ???# ??## #?##% ##????????????????? | | ???? ??# #### #????????????????? | | ????# ??# ## #????????????????? | | ???## #### #########????????????????? | | ???# #### #????????????????????????? | | ????# #### ##????##?????????????????? | | ?????# ### ## ## #?????????????????? | | ????## # ##### #??????????????????? | | ???## ## #??????????????????? | | ???# ##### #??????????????????? | | ?#### ## ## #?????#??????????????????? | | ##"""# ######### #????????????????????????? | | ""#""## #???????# ##????????????????????????? | | ##"### #??????? #?????????????????????????? | | #"##?## #??????? #?????????????????????????? | | #"#???## #?????? #?????????????????????????? | | ""##???####?????? ?????????????????????????? | +----------------------------------------------------+ Best States ------------- Heat Dissipation 25 Energy Generation 15 Energy Capacity 400 Matter Stores 300 Matter Capacity 300 Sight Range 16 Terrain Scan Density 10 Armor Coverage 150 Evasion (%) 42 Item Schematics ----------------- None Robot Schematics ------------------ None Fabricated ------------ Nothing Repaired ---------- Nothing Studied --------- None Alien Tech Used ----------------- None Achievements -------------- None Challenges ------------ None Game ------ Seed ShockboltDoorChargecaster Manual? 0 Play Time 00:11:16 Cumulative 165.3 hours Start 2026.03.06 @ 18:18:00 End 2026.03.06 @ 18:26:10 Sessions 1 Manual Loads 0 Difficulty Rogue Special Mode None Game No. 286 Rogue 286 Adventurer 0 Explorer 0 Win Type - Total 1 Types 1/0/0/0/0/0/0/0/0/0 Lore% 55 Gallery% 56 Achievement% 35 Wizard Run 0 Options --------- Layout 0 ASCII 0 Keyboard 1 Movement Numpad Keybinds 0 Fullscreen 2 Font 18/SmallcapsGlow Map View 76x50 Zoom Use 0% Tactical HUD 1 Map Filters NONE Filters NONE Steam 1 RUN: 18dbd45b-ef24-4892-9701-2edece5cae25